bitfinex-derivatives/quotes_ETHF0:USTF0_20250326
["timestamp","ask_amount","ask_price","bid_price","bid_amount"]
[1742951033771,2.28518,2070.6,2070.5,1.335]
[1742951033972,2.97018,2070.6,2070.5,1.335]
[1742951043789,0.96583,2070.5,2070.4,0.6936]
[1742951043979,0.96588,2070.4,2070.3,0.00724235]
[1742951044390,2.31538,2070.4,2070.3,1.38724235]
[1742951045790,5.41838,2070.4,2070.3,1.38724235]
[1742951049690,6.16452167,2070.4,2070.3,0.00724235]
[1742951049989,6.9247378,2070.4,2070.3,0.00724235]
[1742951050190,6.92474071,2070.4,2070.3,0.00724235]
[1742951050592,7.77752826,2070.4,2070.3,0.00724235]
[1742951050793,7.69890922,2070.4,2070.3,0.00724235]
[1742951052893,6.84612167,2070.4,2070.3,0.00724235]
[1742951053094,6.09998,2070.4,2070.3,0.00724235]
[1742951054591,6.92423548,2070.4,2070.3,0.00724235]
[1742951054787,6.92423653,2070.4,2070.3,0.00724235]
[1742951054990,7.77630674,2070.4,2070.3,0.00724235]
[1742951055302,0.96602,2070.1,2070.0,1.3933]
[1742951055589,4.06902,2070.1,2070.0,1.3933]
[1742951056101,5.73934751,2070.1,2070.0,1.3933]
[1742951056488,6.37684751,2070.1,2070.0,1.3933]
[1742951059292,0.96606,2070.0,2069.9,0.6448]
[1742951059492,2.35716,2070.0,2069.9,2.0151]
[1742951063301,4.06906,2070.0,2069.9,2.0151]
[1742951063498,4.06903,2070.1,2069.9,6.68537072]
[1742951063694,4.06903,2070.1,2070.0,1.3027]
[1742951064599,5.45223,2070.1,2070.0,1.3027]
[1742951065101,4.06903,2070.1,2070.0,1.3027]
[1742951066001,5.45223,2070.1,2070.0,1.3027]
[1742951073199,4.06903,2070.1,2070.0,5.00708737]
[1742951074107,4.06903,2070.1,2070.0,5.00711122]
[1742951075297,3.2078,2070.3,2070.0,7.50711122]
[1742951075501,1.3049,2070.5,2070.2,0.96597]
[1742951075703,0.9659,2070.4,2070.3,1.3469]
[1742951076106,2.2708,2070.4,2070.3,1.3469]
[1742951085717,0.96592,2070.3,2070.2,0.6743]
[1742951086014,2.94032,2070.3,2070.2,0.6743]
[1742951089015,2.94032,2070.3,2070.2,2.0528]
[1742951089415,1.3235,2070.3,2070.2,2.0528]
[1742951089618,0.96589,2070.4,2070.3,0.9659]
[1742951089817,0.96589,2070.4,2070.3,2.84048479]
[1742951090011,1.3934,2070.5,2070.3,1.87458479]
[1742951090318,2.35923,2070.5,2070.4,2.84046479]
[1742951090511,2.35923,2070.5,2070.4,1.87458479]
[1742951090711,2.35923,2070.5,2070.4,2.84046479]
[1742951091918,2.35923,2070.5,2070.4,1.87458479]
[1742951092613,2.35923,2070.5,2070.4,5.08238479]
[1742951093421,2.35923,2070.5,2070.4,2.84046479]
[1742951093620,2.35923,2070.5,2070.4,1.87458479]
[1742951095217,2.35923,2070.5,2070.4,2.84046479]
[1742951095714,2.35923,2070.5,2070.4,5.55218]
[1742951096015,2.35923,2070.5,2070.4,6.04791348]
[1742951097215,2.35923,2070.5,2070.4,2.84011348]
[1742951097420,2.35923,2070.5,2070.4,6.04791348]
[1742951097614,2.35923,2070.5,2070.4,5.08203348]
[1742951098013,2.35923,2070.5,2070.4,5.08198388]
[1742951098916,2.35923,2070.5,2070.4,5.08200957]
[1742951099225,2.35923,2070.5,2070.4,6.04788957]
[1742951100120,2.35923,2070.5,2070.4,6.04793249]
[1742951100325,2.35923,2070.5,2070.4,5.08205249]
[1742951101919,3.01093,2070.5,2070.4,4.5863]
[1742951102218,3.01093,2070.5,2070.4,5.0822834]
[1742951102423,3.01093,2070.5,2070.4,4.5863]
[1742951103726,3.01093,2070.5,2070.4,5.08243174]
[1742951104127,3.01093,2070.5,2070.4,4.5863]
[1742951104524,3.01093,2070.5,2070.4,5.08243838]
[1742951105624,3.01093,2070.5,2070.4,1.87463838]
[1742951106226,2.0451,2070.5,2070.4,2.84063054]
[1742951106430,1.3934,2070.5,2070.4,2.84063054]
[1742951106931,2.35923,2070.5,2070.4,2.84063054]
[1742951111537,2.35923,2070.5,2070.4,1.87475054]
[1742951111738,2.35923,2070.5,2070.4,2.84063054]
[1742951112738,2.35923,2070.5,2070.4,2.84086386]
[1742951115248,2.35923,2070.5,2070.4,6.04866386]
[1742951119236,2.35923,2070.5,2070.4,6.04904576]
[1742951120945,2.35923,2070.5,2070.4,5.08316576]
[1742951122752,2.35923,2070.5,2070.4,3.70466576]
[1742951123659,2.35923,2070.5,2070.4,3.2078]
[1742951125149,0.96597,2070.2,2070.1,5.48041]
[1742951125349,0.96597,2070.2,2070.1,4.67082867]
[1742951125546,0.96597,2070.2,2070.1,5.99932867]
[1742951125736,0.96597,2070.2,2070.1,5.50231]
[1742951125941,0.96597,2070.2,2070.1,5.99931845]
[1742951128448,0.96597,2070.2,2070.1,2.79151845]
[1742951128655,0.96597,2070.2,2070.1,5.99931845]
[1742951130152,0.96597,2070.2,2070.1,5.99916755]
[1742951132353,0.96597,2070.2,2070.1,5.99907704]
[1742951134557,0.96597,2070.2,2070.1,5.9990552]
[1742951136757,2.28202,2070.3,2070.2,0.96597]
[1742951136953,2.28202,2070.3,2070.2,2.83763713]
[1742951137551,1.3161,2070.3,2070.2,2.83763713]
[1742951139955,0.97306235,2070.6,2070.5,0.96583]
[1742951140258,0.97306235,2070.6,2070.5,1.46249713]
[1742951140259,2.25496235,2070.6,2070.5,1.46249713]
[1742951140758,2.25496235,2070.6,2070.5,2.86599713]
[1742951140962,2.25496235,2070.6,2070.5,1.90016713]
[1742951141258,0.96583,2070.5,2070.4,3.2078]
[1742951141456,2.24773,2070.5,2070.4,5.10796454]
[1742951141656,2.24773,2070.5,2070.4,6.07384454]
[1742951143855,2.24773,2070.5,2070.4,6.0737353]
[1742951145557,2.24773,2070.5,2070.4,6.07364753]
[1742951145865,0.96626,2069.6,2069.3,3.2078]
[1742951146158,0.9663,2069.5,2069.4,2.6659]
[1742951146356,3.1,2069.7,2069.4,3.63223]
[1742951146549,3.10724235,2069.7,2069.5,1.3454]
[1742951146757,0.96625,2069.6,2069.5,1.3454]
[1742951148863,2.27395,2069.6,2069.5,1.3454]
[1742951152267,5.48175,2069.6,2069.5,1.3454]
[1742951153967,2.41575,2069.5,2069.1,3.2078]
[1742951154168,2.41575,2069.5,2068.4,5.8709]
[1742951154169,2.41621,2069.1,2068.4,5.8709]
[1742951154468,3.2078,2068.9,2068.5,0.96674]
[1742951154661,0.9667,2068.7,2068.6,1.318]
[1742951154860,0.96667,2068.7,2068.6,1.318]
[1742951155157,0.96676,2068.5,2068.4,4.5921]
[1742951155464,0.96676,2068.5,2068.4,1.3843]
[1742951156457,2.27806,2068.5,2068.4,1.3843]
[1742951157465,2.27806,2068.5,2068.4,0.6994]
[1742951158668,2.27806,2068.5,2068.4,2.026]
[1742951162271,0.9669,2068.2,2068.1,3.2078]
[1742951163165,0.9669,2068.2,2068.1,4.17475]
[1742951163365,0.9669,2068.2,2068.1,3.2078]
[1742951163562,0.9669,2068.2,2068.1,4.5089]
[1742951164581,0.9669,2068.2,2068.1,5.47585]
[1742951164983,0.9669,2068.2,2068.1,4.5089]
[1742951165281,0.9669,2068.2,2068.1,5.47585]
[1742951166176,0.9669,2068.2,2068.1,4.5089]
[1742951167179,0.9669,2068.2,2068.1,5.47585]
[1742951169785,0.9669,2068.2,2068.1,4.5089]
[1742951170285,0.9669,2068.2,2068.1,5.47585]
[1742951170786,0.96689,2068.3,2068.1,5.47585]
[1742951170986,0.96689,2068.3,2068.2,1.3345]
[1742951172184,1.3989,2068.4,2068.3,0.96686]
[1742951172382,3.2078,2068.6,2068.2,1.3345]
[1742951172588,0.96684,2068.4,2068.3,0.96685]
[1742951172784,0.96684,2068.4,2068.2,2.30137]
[1742951172983,0.96686,2068.3,2068.2,2.30137]
[1742951173183,0.96686,2068.3,2068.2,0.96687]
[1742951173583,0.96685,2068.4,2068.2,0.96687]
[1742951173883,1.2833,2068.5,2068.2,0.96687]
[1742951174080,0.96686,2068.3,2068.2,0.96687]
[1742951174282,0.96684,2068.4,2068.1,3.2078]
[1742951174481,1.2833,2068.5,2068.2,0.9669]
[1742951174682,1.2833,2068.5,2068.1,3.2078]
[1742951174879,0.96685,2068.4,2068.2,0.96686]
[1742951175081,0.9669,2068.2,2068.1,4.17473]
[1742951175288,0.96688,2068.3,2068.2,0.9669]
[1742951175788,0.96686,2068.3,2068.2,0.9669]
[1742951175986,0.96684,2068.4,2068.2,0.9669]
[1742951176188,0.96686,2068.3,2068.2,0.9669]
[1742951177691,0.96686,2068.3,2067.8,5.52571]
[1742951177692,0.96705,2067.9,2067.8,0.96705]
[1742951177885,1.2833,2068.5,2067.5,5.62586]
[1742951177886,0.96709,2067.8,2067.7,0.96711]
[1742951178086,0.96714,2067.7,2067.6,2.31656]
[1742951178281,2.35554,2067.7,2067.6,2.31656]
[1742951178481,2.35554,2067.7,2067.6,1.3494]
[1742951178686,2.35554,2067.7,2067.6,2.36736519]
[1742951179292,2.35554,2067.7,2067.6,0.80487038]
[1742951179687,2.35554,2067.7,2067.6,0.7033]
[1742951179883,2.35554,2067.7,2067.6,0.82307156]
[1742951180286,5.47554,2067.7,2067.6,0.82307156]
[1742951182083,4.5084,2067.7,2067.6,1.79025156]
[1742951183394,3.2078,2068.0,2067.8,0.96708]
[1742951183594,4.4996,2067.9,2067.7,0.6612]
[1742951183896,1.26182844,2067.8,2067.7,1.62834]
[1742951185197,2.22891844,2067.8,2067.7,1.62834]
[1742951185794,1.26182844,2067.8,2067.7,1.67918847]
[1742951186299,1.26182844,2067.8,2067.7,1.69449267]
[1742951187192,2.22891844,2067.8,2067.7,2.13345267]
[1742951188402,2.22891844,2067.8,2067.7,3.10059267]
[1742951191502,2.22891844,2067.8,2067.7,3.11397306]
[1742951192403,1.26182844,2067.8,2067.7,3.11397306]
[1742951192596,1.26182844,2067.8,2067.7,3.16480788]
[1742951193002,1.26182844,2067.8,2067.7,3.16674534]
[1742951194589,2.22891844,2067.8,2067.7,3.16674534]
[1742951195004,1.26182844,2067.8,2067.7,3.16674534]
[1742951196201,3.2078,2068.1,2067.9,0.96701]
[1742951196395,4.07498,2068.1,2068.0,1.291]
[1742951196897,4.07495,2068.1,2068.0,1.291]
[1742951197098,4.07495,2068.1,2068.0,1.42330534]
[1742951197607,2.26475,2068.1,2068.0,1.42330534]
[1742951198804,2.26475,2068.1,2068.0,2.44113147]
[1742951199004,2.26475,2068.1,2068.0,1.47413147]
[1742951199205,1.2978,2068.1,2068.0,2.44113147]
[1742951199506,1.2978,2068.1,2068.0,3.81073147]
[1742951200005,0.96686,2068.3,2068.2,0.96687]
[1742951200203,2.24286,2068.3,2068.2,0.96687]
[1742951200405,0.9669,2068.2,2068.1,2.31401]
[1742951200602,2.2429,2068.2,2068.1,2.31401]
[1742951200997,2.2429,2068.2,2068.1,2.51246801]
[1742951201202,1.276,2068.2,2068.1,2.51246801]
[1742951202903,6.9777,2068.4,2068.2,0.96686]
[1742951203209,7.28063,2068.4,2068.3,0.96686]
[1742951203605,4.17463,2068.4,2068.3,0.96686]
[1742951203804,3.2078,2068.4,2068.3,0.96686]
[1742951204010,3.2078,2068.4,2068.3,1.16531801]
[1742951204410,4.17461,2068.4,2068.3,1.84251801]
[1742951205209,3.2078,2068.4,2068.3,1.84251801]
[1742951205610,3.2078,2068.4,2068.3,1.89327714]
[1742951205810,4.5492,2068.4,2068.3,1.89327714]
[1742951206502,4.5492,2068.4,2068.3,1.90867068]
[1742951209811,0.6884,2068.6,2068.5,0.96676]
[1742951210012,2.93722,2068.6,2068.5,0.96676]
[1742951210511,2.93722,2068.6,2068.5,2.51187068]
[1742951211810,1.2821,2068.6,2068.5,2.51187068]
[1742951212017,2.24882,2068.6,2068.5,2.51187068]
[1742951212219,2.24882,2068.6,2068.5,2.56263105]
[1742951212714,2.24882,2068.6,2068.5,2.57802335]
[1742951223329,2.24882,2068.6,2068.5,0.33076335]
[1742951226423,2.41697,2068.5,2068.0,0.96696]
[1742951226623,0.96699,2068.1,2068.0,0.967]
[1742951227326,0.96695,2068.1,2068.0,2.31486]
[1742951230027,2.34615,2068.1,2068.0,2.31486]
[1742951230423,2.34615,2068.1,2068.0,1.3479]
[1742951231230,1.3792,2068.1,2068.0,2.3149]
[1742951232240,2.34615,2068.1,2068.0,2.3149]
[1742951234142,1.3792,2068.1,2068.0,2.3149]
[1742951234943,3.2078,2068.3,2068.0,1.3479]
[1742951235239,3.2078,2068.3,2068.2,0.9669]
[1742951235240,2.26926,2068.3,2068.2,0.9669]
[1742951235641,2.26926,2068.3,2068.2,1.6224]
[1742951236034,2.26926,2068.3,2068.2,0.6555]
[1742951236342,0.9669,2068.2,2068.1,42.1192]
[1742951236534,2.239,2068.2,2068.1,43.08615]
[1742951236732,2.239,2068.2,2068.1,2.28615]
[1742951237144,1.2721,2068.2,2068.1,2.28615]
[1742951238542,2.239,2068.2,2068.1,2.28615]
[1742951239042,2.239,2068.2,2068.1,1.3192]
[1742951239743,0.96695,2068.1,2068.0,0.6712]
[1742951239935,2.37085,2068.1,2068.0,2.0241]
[1742951240137,2.37085,2068.1,2068.0,2.9911]
[1742951240643,2.37085,2068.1,2068.0,2.0241]
[1742951241442,2.37085,2068.1,2068.0,2.9911]
[1742951241644,2.37085,2068.1,2068.0,1.3529]
[1742951241840,5.57865,2068.1,2068.0,1.3529]
[1742951244342,5.57865,2068.1,2067.9,1.3601]
[1742951244343,0.967,2068.0,2067.9,1.3601]
[1742951244639,2.2956,2068.0,2067.9,2.7627]
[1742951246043,2.2956,2068.0,2067.9,3.72974]
[1742951248550,2.2956,2068.0,2067.9,2.7627]
[1742951249448,2.2956,2068.0,2067.9,3.72974]
[1742951251850,2.2956,2068.0,2067.9,2.7627]
[1742951252948,2.2956,2068.0,2067.9,3.72974]
[1742951253454,2.2956,2068.0,2067.9,2.7627]
[1742951254040,2.2956,2068.0,2067.9,3.72974]
[1742951255953,2.2956,2068.0,2067.9,2.7627]
[1742951256253,2.2956,2068.0,2067.9,3.72974]
[1742951259857,2.2956,2068.0,2067.9,2.7627]
[1742951260162,2.2956,2068.0,2067.9,3.72974]
[1742951260356,1.3286,2068.0,2067.9,3.72974]
[1742951261259,2.2956,2068.0,2067.9,3.72974]
[1742951261647,1.3286,2068.0,2067.9,3.72974]
[1742951261849,4.06996,2068.1,2068.0,0.967]
[1742951262048,0.96722,2067.6,2067.5,0.96721]
[1742951262255,0.96722,2067.6,2067.5,1.3549]
[1742951262456,0.96717,2067.7,2067.5,1.3549]
[1742951262663,0.96718,2067.6,2067.5,1.3549]
[1742951263162,6.3108,2067.8,2067.7,0.96714]
[1742951263562,6.3108,2067.8,2067.6,1.2882]
[1742951263856,2.32994,2067.7,2067.6,2.25538]
[1742951268462,1.3628,2067.7,2067.6,2.25538]
[1742951269168,2.32994,2067.7,2067.6,2.25538]
[1742951273064,2.32994,2067.7,2067.6,1.2882]
[1742951274172,2.32994,2067.7,2067.6,2.25538]
[1742951274365,2.32994,2067.7,2067.6,1.2882]
[1742951275272,2.32994,2067.7,2067.6,2.25538]
[1742951278169,2.32994,2067.7,2067.6,1.2882]
[1742951278474,2.32994,2067.7,2067.6,2.25538]
[1742951280676,2.32994,2067.7,2067.6,1.2882]
[1742951282067,2.32994,2067.7,2067.6,2.25538]
[1742951282668,2.32994,2067.7,2067.6,1.2882]
[1742951284584,3.2078,2068.1,2067.6,4.496]
[1742951284878,6.3108,2068.1,2068.0,0.967]
[1742951285083,7.5896,2068.1,2068.0,0.967]
[1742951285281,8.55655,2068.1,2067.9,0.967]
[1742951285583,1.3402,2068.0,2067.9,0.967]
[1742951285778,3.103,2068.4,2068.1,0.96692]
[1742951285973,2.30706,2068.3,2068.2,0.656]
[1742951286281,2.30706,2068.3,2068.2,1.309]
[1742951287079,2.94276,2068.3,2068.2,0.656]
[1742951288281,0.96695,2068.1,2068.0,0.653]
[1742951289380,1.4036,2068.2,2067.7,0.6553]
[1742951289578,0.96698,2068.1,2068.0,0.96697]
[1742951289881,0.967,2068.1,2068.0,0.967]
[1742951290979,2.37055,2068.2,2068.0,0.967]
[1742951291283,2.37055,2068.2,2068.1,1.3662]
[1742951293288,1.4036,2068.2,2068.1,2.33315]
[1742951293681,3.103,2068.6,2068.3,0.96684]
[1742951293881,2.2762,2068.5,2068.4,0.6462]
[1742951294088,2.2762,2068.5,2068.4,1.3104]
[1742951295680,2.2762,2068.5,2068.4,2.27721]
[1742951296182,2.2762,2068.5,2068.4,1.3104]
[1742951296594,1.3094,2068.5,2068.2,0.9669]
[1742951296889,1.3709,2068.4,2068.2,0.9669]
[1742951297090,0.96688,2068.3,2068.1,1.63111]
[1742951297290,0.96688,2068.3,2068.2,1.3361]
[1742951301787,0.96685,2068.4,2068.2,2.303]
[1742951301986,0.96685,2068.4,2068.3,2.0023]
[1742951302795,0.96685,2068.4,2068.3,2.96916]
[1742951302992,0.96676,2068.5,2068.3,2.96913]
[1742951303189,0.96676,2068.5,2068.4,1.3234]
[1742951303496,0.96676,2068.5,2068.4,1.9634]
[1742951303800,4.06972,2068.6,2068.4,1.9634]
[1742951303997,4.06972,2068.6,2068.5,1.3677]
[1742951306095,3.21504235,2068.7,2068.5,1.3677]
[1742951306294,4.07591235,2068.7,2068.6,1.61002]
[1742951306691,4.07591235,2068.7,2068.6,2.97642]
[1742951307097,4.07591235,2068.7,2068.6,2.0097]
[1742951307493,0.97391235,2068.7,2068.6,2.0097]
[1742951314500,0.97391235,2068.7,2068.6,2.97642]
[1742951314807,0.97391235,2068.7,2068.6,2.0097]
[1742951316700,5.63175235,2068.7,2068.2,0.96689]
[1742951316901,0.96686,2068.3,2068.2,3.73809]
[1742951317603,0.96684,2068.4,2068.3,0.96686]
[1742951317807,0.96684,2068.4,2068.3,2.36546]
[1742951318197,0.96684,2068.4,2068.3,1.3986]
[1742951320102,0.96686,2068.3,2068.2,0.7049]
[1742951320407,2.30486,2068.3,2068.2,0.7049]
[1742951321707,2.30486,2068.3,2068.2,1.3585]
[1742951321912,2.30486,2068.3,2068.2,2.6389]
[1742951337311,0.96695,2068.1,2068.0,3.2078]
[1742951337512,0.96695,2068.1,2068.0,4.1748]
[1742951338620,0.96695,2068.1,2068.0,5.5808]
[1742951339016,0.96695,2068.1,2068.0,4.6138]
[1742951340221,0.96695,2068.1,2068.0,5.5808]
[1742951341421,0.96695,2068.1,2068.0,4.6138]
[1742951341618,0.967,2068.0,2067.9,0.6986]
[1742951341918,2.2454,2068.0,2067.9,0.6986]
[1742951342122,0.96709,2067.8,2067.7,3.02014]
[1742951342311,0.96709,2067.8,2067.7,3.67724]
[1742951342722,2.24548,2067.9,2067.7,3.67724]
[1742951342922,2.24548,2067.9,2067.8,1.3812]
[1742951343116,2.24548,2067.9,2067.8,5.55609]
[1742951343315,2.24548,2067.9,2067.8,4.589]
[1742951343622,2.24548,2067.9,2067.8,1.3812]
[1742951344217,1.2784,2067.9,2067.5,4.17501]
[1742951344520,0.96718,2067.6,2067.5,5.56591]
[1742951344823,0.96718,2067.6,2067.5,3.2078]
[1742951345219,2.28068,2067.6,2067.5,3.2078]
[1742951345523,1.3135,2067.6,2067.5,4.17503]
[1742951346123,0.6506,2067.8,2067.7,0.96714]
[1742951346124,4.4227,2067.8,2067.7,0.96714]
[1742951346625,4.4227,2067.8,2067.5,3.2078]
[1742951346626,0.96714,2067.7,2067.6,0.96715]
[1742951347424,2.28784,2067.7,2067.6,0.96715]
[1742951347722,1.3207,2067.7,2067.6,0.96715]
[1742951349231,4.06909,2067.8,2067.7,0.96714]
[1742951350215,3.102,2067.8,2067.7,0.96714]
[1742951350724,0.96708,2067.9,2067.8,0.96709]
[1742951350926,0.96708,2067.9,2067.7,0.9671]
[1742951351126,2.25618,2067.9,2067.8,0.6474]
[1742951351424,2.25618,2067.9,2067.8,1.2942]
[1742951352412,1.2891,2067.9,2067.8,5.46909]
[1742951352618,0.96703,2068.0,2067.8,5.46909]
[1742951353019,2.32893,2068.0,2067.8,5.46909]
[1742951353221,0.96704,2067.9,2067.8,5.46909]
[1742951356024,2.32893,2068.0,2067.9,0.96704]
[1742951356220,0.96704,2067.9,2067.8,5.46908]
[1742951356621,2.32892,2068.0,2067.8,4.502]
[1742951356922,2.32892,2068.0,2067.9,0.96704]
[1742951357319,2.32892,2068.0,2067.9,2.27954]
[1742951357721,2.32892,2068.0,2067.9,1.3125]
[1742951358929,3.102,2068.1,2067.9,1.3125]
[1742951358930,4.06899,2068.1,2067.9,2.27954]
[1742951359226,0.967,2068.0,2067.9,2.27954]
[1742951359429,2.2863,2068.0,2067.9,0.96704]
[1742951359729,3.2078,2068.5,2067.9,3.2078]
[1742951359920,2.28619,2068.3,2068.1,0.96691]
[1742951360116,2.28619,2068.3,2068.2,0.6553]
[1742951361030,2.28619,2068.3,2068.2,1.3142]
[1742951362625,2.28619,2068.3,2068.2,2.2811]
[1742951366237,2.28619,2068.3,2068.2,1.3142]
[1742951368436,2.28619,2068.3,2068.2,0.6553]
[1742951371636,2.28619,2068.3,2068.2,1.6222]
[1742951377235,2.28619,2068.3,2068.2,2.9268]
[1742951391450,0.9669,2068.2,2068.1,0.6458]
[1742951391649,0.96695,2068.1,2068.0,4.85518]
[1742951391856,0.96695,2068.1,2068.0,0.6804]
[1742951392051,0.967,2068.0,2067.9,0.6378]
[1742951392946,2.3273,2068.0,2067.9,2.0152]
[1742951395054,2.3273,2068.0,2067.9,2.98224]
[1742951395256,1.3603,2068.0,2067.9,2.98224]
[1742951396747,0.96695,2068.1,2068.0,0.967]
[1742951396956,2.28014,2068.2,2068.0,2.3744]
[1742951397148,2.28014,2068.2,2068.1,2.0537]
[1742951397348,0.96694,2068.2,2068.1,2.0537]
[1742951399855,3.101,2068.2,2068.0,3.2078]
[1742951400059,0.96704,2067.9,2067.8,1.3759]
[1742951400752,0.96704,2067.9,2067.8,2.34299]
[1742951400958,0.96704,2067.9,2067.8,1.3759]
[1742951401561,0.96704,2067.9,2067.8,2.34299]
[1742951402456,0.96704,2067.9,2067.8,1.3759]
[1742951404562,0.96718,2067.6,2067.5,3.2078]
[1742951404754,0.96723,2067.5,2067.4,1.3419]
[1742951407868,4.06921,2067.6,2067.4,2.30915]
[1742951408371,0.97441235,2067.7,2067.5,2.25833]
[1742951408570,4.07641235,2067.7,2067.6,2.636]
[1742951408764,3.10924235,2067.7,2067.6,2.636]
[1742951408967,4.07638235,2067.7,2067.6,2.636]
[1742951410160,4.07638235,2067.7,2067.6,3.60318]
[1742951410470,4.07638235,2067.7,2067.6,2.636]
[1742951412162,4.07638235,2067.7,2067.6,3.60318]
[1742951412359,4.07638235,2067.7,2067.6,2.636]
[1742951412765,4.07638235,2067.7,2067.6,3.60318]
[1742951412965,4.07638235,2067.7,2067.6,2.636]
[1742951413773,4.07638235,2067.7,2067.6,3.60318]
[1742951413972,4.07638235,2067.7,2067.6,2.636]
[1742951414272,4.07638235,2067.7,2067.6,3.60318]
[1742951415077,0.00724235,2067.7,2067.6,6.81098]
[1742951415379,3.102,2068.2,2068.1,0.96695]
[1742951415570,3.102,2068.2,2068.1,0.96693]
[1742951415767,3.2078,2068.3,2068.2,0.9669]
[1742951416276,0.6628,2068.6,2068.1,0.6771]
[1742951416277,4.06874,2068.6,2068.1,0.6771]
[1742951416469,3.102,2068.6,2068.1,0.6771]
[1742951416671,0.96681,2068.4,2068.2,0.96687]
[1742951416980,0.96678,2068.5,2068.3,41.76686]
[1742951417168,2.33658,2068.5,2068.3,41.76686]
[1742951417571,3.10924235,2068.6,2068.3,40.8]
[1742951417572,2.33661,2068.4,2068.3,40.8]
[1742951417867,1.3698,2068.4,2068.3,40.8]
[1742951418067,1.3698,2068.4,2068.3,41.76686]
[1742951418464,1.3698,2068.4,2068.3,40.8]
[1742951418777,2.33661,2068.4,2068.3,40.8]
[1742951419073,2.33661,2068.4,2068.2,1.66178]
[1742951419260,1.3813,2068.3,2068.2,1.66178]
[1742951419461,1.3813,2068.3,2068.2,42.46178]
[1742951419764,1.3813,2068.3,2068.2,41.4949]
[1742951419964,1.3813,2068.3,2068.2,42.4618]
[1742951420474,1.3813,2068.3,2068.2,1.6618]
[1742951427367,1.3813,2068.3,2068.2,3.0619]
[1742951427571,4.07597235,2068.6,2068.4,0.96679]
[1742951427778,1.2829,2068.5,2068.4,0.96679]
[1742951428676,0.00724235,2068.6,2068.5,0.96676]
[1742951436774,0.6373,2069.2,2068.6,2.41678]
[1742951436979,1.3214,2069.0,2068.9,0.96658]
[1742951438384,0.97368235,2069.2,2068.8,3.2078]
[1742951438685,0.00724235,2069.2,2069.1,4.17428]
[1742951440484,1.32434235,2069.2,2069.1,4.17428]
[1742951445598,0.00724235,2069.2,2069.1,4.17428]
[1742951447402,0.00724235,2069.2,2069.1,5.50408]
[1742951448697,6.3068,2069.7,2069.6,0.96625]
[1742951448894,7.27304,2069.7,2069.5,0.96628]
[1742951449294,6.3068,2069.7,2069.6,0.96625]
[1742951449493,4.0652,2069.7,2069.6,0.96625]
[1742951449691,4.0652,2069.7,2069.5,0.96627]
[1742951449998,3.099,2069.7,2069.6,0.96625]
[1742951450595,4.06517,2069.8,2069.6,0.96625]
[1742951450797,0.9662,2069.7,2069.6,0.96625]
[1742951451295,4.06519,2069.8,2069.6,0.96625]
[1742951451492,1.2865,2069.7,2069.6,0.96625]
[1742951453893,1.2865,2069.7,2069.6,2.37695]
[1742951454393,1.2865,2069.7,2069.4,0.00724235]
[1742951454593,4.4389,2069.6,2069.4,0.00724235]
[1742951454790,1.3297,2069.5,2069.4,0.00724235]
[1742951459297,2.296,2069.5,2069.4,0.00724235]
[1742951459494,2.296,2069.5,2069.4,0.97358235]
[1742951459695,2.296,2069.5,2069.4,0.00724235]
[1742951460203,2.296,2069.5,2069.4,0.97358235]
[1742951460407,2.296,2069.5,2069.4,0.00724235]
[1742951460896,2.296,2069.5,2069.4,0.97358235]
[1742951461096,2.296,2069.5,2069.4,0.00724235]
[1742951465502,4.4287,2069.5,2069.4,0.00724235]
[1742951470010,4.4287,2069.5,2069.4,1.30684235]
[1742951470401,4.4287,2069.5,2069.4,0.00724235]
[1742951474510,4.4287,2069.5,2069.4,1.36894235]
[1742951476400,5.395,2069.5,2069.4,1.36894235]
[1742951480799,8.6028,2069.5,2069.4,1.36894235]
[1742951482199,8.6028,2069.5,2069.4,0.00724235]
[1742951483810,8.6028,2069.5,2069.4,1.31764235]
[1742951485708,8.6028,2069.5,2069.4,0.00724235]
[1742951486111,8.6028,2069.5,2069.4,1.31764235]
[1742951486613,5.395,2069.5,2069.4,1.31764235]
[1742951486909,8.6028,2069.5,2069.4,1.31764235]
[1742951487514,5.395,2069.5,2069.4,1.31764235]
[1742951487909,8.6028,2069.5,2069.4,1.31764235]
[1742951488815,8.6028,2069.5,2069.4,0.00724235]
[1742951489607,8.6028,2069.5,2069.4,1.38674235]
[1742951491215,9.3500011,2069.5,2069.4,1.38674235]
[1742951491922,9.3500011,2069.5,2069.4,2.03384235]
[1742951492513,9.3500011,2069.5,2069.4,0.00724235]
[1742951492813,9.3500011,2069.5,2069.1,2.0458]
[1742951492814,0.96644,2069.2,2069.1,2.0458]
[1742951493015,4.06544,2069.2,2069.1,2.0458]
[1742951493318,4.06544,2069.2,2069.1,1.3987]
[1742951493508,4.8126411,2069.2,2069.1,1.3987]
[1742951493713,9.4094411,2069.2,2069.1,1.3987]
[1742951494109,0.96653,2069.0,2068.9,0.65434235]
[1742951494314,0.96653,2069.0,2068.9,2.05304235]
[1742951495107,2.35553,2069.0,2068.9,2.05304235]
[1742951497725,5.56333,2069.0,2068.9,2.05304235]
[1742951497918,2.35553,2069.0,2068.9,2.05304235]
[1742951498520,0.96653,2069.0,2068.9,2.05304235]
[1742951498713,3.099,2069.2,2068.9,2.05304235]
[1742951498920,3.2078,2069.3,2069.0,1.3215]
[1742951499120,0.96647,2069.2,2069.1,0.96646]
[1742951499314,0.96647,2069.2,2069.1,1.60766]
[1742951499520,0.96647,2069.2,2069.1,0.6412]
[1742951499917,0.96647,2069.2,2069.1,1.9627]
[1742951500624,2.25697,2069.2,2069.1,1.9627]